fUST/lending_fUST_20260528
["ID","MTS","AMOUNT","RATE_DAILY","PERIOD"]
[423226867,1779954640000,-500.0,8.39e-05,2]
[423226868,1779954640000,-500.0,8.39e-05,2]
[423226862,1779954640000,-500.0,8.39e-05,2]
[423226863,1779954640000,-500.0,8.39e-05,2]
[423226882,1779954640000,-500.0,8.767e-05,2]
[423226865,1779954640000,-500.0,8.39e-05,2]
[423226869,1779954640000,-5177.0,8.391e-05,2]
[423226908,1779954640000,-500.0,9.315e-05,2]
[423226871,1779954640000,-2980.15107865,8.491e-05,2]
[423226873,1779954640000,-500.0,8.493e-05,2]
[423226872,1779954640000,-500.0,8.493e-05,2]
[423226876,1779954640000,-500.0,8.493e-05,2]
[423226874,1779954640000,-500.0,8.493e-05,2]
[423226875,1779954640000,-500.0,8.493e-05,2]
[423226879,1779954640000,-500.0,8.493e-05,2]
[423226878,1779954640000,-1849.7,8.493e-05,2]
[423226877,1779954640000,-500.0,8.493e-05,2]
[423226880,1779954640000,-500.0,8.493e-05,2]
[423226864,1779954640000,-500.0,8.39e-05,2]
[423226909,1779954640000,-313.03973343,9.315e-05,2]
[423226894,1779954640000,-271.6619212,8.849e-05,2]
[423226913,1779954640000,-500.0,9.589e-05,2]
[423226946,1779954640000,-10251.42240976,0.000106,2]
[423226948,1779954640000,-500.0,0.00010684,2]
[423226947,1779954640000,-500.0,0.00010684,2]
[423226945,1779954640000,-2349.25329934,0.000105,2]
[423226943,1779954640000,-500.0,0.0001041,2]
[423226949,1779954640000,-500.0,0.00010684,2]
[423226950,1779954640000,-1849.7,0.00010684,2]
[423226951,1779954640000,-155.63982715,0.00010684,2]
[423226952,1779954640000,-10251.42240976,0.000107,2]
[423226961,1779954640000,-1650.0,0.00010959,2]
[423226953,1779954640000,-10251.42240976,0.000108,2]
[423226954,1779954640000,-10251.42240976,0.000109,2]
[423226944,1779954640000,-10251.42240976,0.000105,2]
[423226956,1779954640000,-500.0,0.00010958,2]
[423226959,1779954640000,-1849.7,0.00010958,2]
[423226960,1779954640000,-15000.0,0.00010959,2]
[423226957,1779954640000,-500.0,0.00010958,2]
[423226962,1779954640000,-151.0,0.00011,2]
[423226963,1779954640000,-164.05576265,0.00011,2]
[423226964,1779954640000,-10251.42240976,0.00011,2]
[423226965,1779954640000,-151.0,0.00011,2]
[423226966,1779954640000,-151.0,0.00011,2]
[423226967,1779954640000,-151.0,0.00011,2]
[423226968,1779954640000,-155.0,0.00011033,2]
[423226969,1779954640000,-221.62657811,0.00011087,2]
[423226912,1779954640000,-152.0,9.419e-05,7]
[423226958,1779954640000,-500.0,0.00010958,2]
[423226942,1779954640000,-1849.7,0.0001041,2]
[423226955,1779954640000,-2349.25329934,0.00010932,2]
[423226941,1779954640000,-500.0,0.0001041,2]
[423226940,1779954640000,-500.0,0.0001041,2]
[423226915,1779954640000,-500.0,9.589e-05,2]
[423226917,1779954640000,-1849.7,9.589e-05,2]
[423226916,1779954640000,-281.24805352,9.589e-05,2]
[423226918,1779954640000,-500.0,9.589e-05,2]
[423226920,1779954640000,-357.26667031,9.799e-05,2]
[423226924,1779954640000,-1849.7,9.863e-05,2]
[423226919,1779954640000,-524.0,9.679e-05,2]
[423226921,1779954640000,-500.0,9.863e-05,2]
[423226923,1779954640000,-500.0,9.863e-05,2]
[423226922,1779954640000,-500.0,9.863e-05,2]
[423226926,1779954640000,-152.0,0.00010034,2]
[423226927,1779954640000,-500.0,0.00010136,2]
[423226914,1779954640000,-500.0,9.589e-05,2]
[423226939,1779954640000,-500.0,0.0001041,2]
[423226937,1779954640000,-10251.42240976,0.000103,2]
[423226938,1779954640000,-10251.42240976,0.000104,2]
[423226935,1779954640000,-160.0,0.00010193,2]
[423226925,1779954640000,-500.0,9.863e-05,2]
[423226934,1779954640000,-160.0,0.00010193,2]
[423226936,1779954640000,-10251.42240976,0.000102,2]
[423226933,1779954640000,-374.02284132,0.00010144,2]
[423226931,1779954640000,-500.0,0.00010136,2]
[423226930,1779954640000,-1849.7,0.00010136,2]
[423226928,1779954640000,-500.0,0.00010136,2]
[423226929,1779954640000,-500.0,0.00010136,2]
[423226932,1779954640000,-864.0,0.00010141,2]
[423227013,1779954641000,-2349.25329934,0.00011797,2]
[423227011,1779954641000,-500.0,0.0001178,2]
[423227010,1779954641000,-500.0,0.0001178,2]
[423227009,1779954641000,-151.0,0.000117,2]
[423227006,1779954641000,-200.0,0.00011699,2]
[423227002,1779954641000,-200.0,0.00011599,2]
[423227005,1779954641000,-200.0,0.00011699,2]
[423227004,1779954641000,-151.0,0.000116,2]
[423227007,1779954641000,-151.0,0.000117,2]
[423227003,1779954641000,-10251.42240976,0.000116,2]
[423227012,1779954641000,-1849.7,0.0001178,2]
[423227000,1779954641000,-1849.7,0.00011506,2]
[423227008,1779954641000,-10251.42240976,0.000117,2]
[423227014,1779954641000,-200.0,0.00011799,2]
[423227020,1779954641000,-1000.0,0.00012,2]
[423227018,1779954641000,-1000.0,0.00012,2]
[423227015,1779954641000,-200.0,0.00011799,2]
[423227017,1779954641000,-151.0,0.000119,2]
[423227016,1779954641000,-10251.42240976,0.000118,2]
[423227021,1779954641000,-1000.0,0.00012,2]
[423227022,1779954641000,-1000.0,0.00012,2]
[423227024,1779954641000,-1000.0,0.00012,2]
[423227026,1779954641000,-1000.0,0.00012,2]
[423227023,1779954641000,-1000.0,0.00012,2]
[423227030,1779954641000,-151.0,0.00012,2]
[423227032,1779954641000,-500.0,0.00012054,2]
[423227028,1779954641000,-10251.42240976,0.00012,2]
[423227019,1779954641000,-1000.0,0.00012,2]
[423227001,1779954641000,-200.0,0.00011599,2]
[423226971,1779954641000,-10251.42240976,0.000111,2]
[423226999,1779954641000,-500.0,0.00011506,2]
[423226970,1779954641000,-767.06633829,0.00011098,2]
[423226972,1779954641000,-557.59377393,0.00011106,2]
[423226973,1779954641000,-1000.0,0.00011156,2]
[423226974,1779954641000,-500.0,0.00011232,2]
[423226976,1779954641000,-500.0,0.00011232,2]
[423226977,1779954641000,-1849.7,0.00011232,2]
[423227027,1779954641000,-1000.0,0.00012,2]
[423226978,1779954641000,-1414.0,0.0001127,2]
[423226975,1779954641000,-500.0,0.00011232,2]
[423226979,1779954641000,-648.729,0.0001127,2]
[423226983,1779954641000,-185.0,0.0001127,2]
[423226981,1779954641000,-443.0,0.0001127,2]
[423226982,1779954641000,-185.0,0.0001127,2]
[423226984,1779954641000,-10251.42240976,0.000113,2]
[423226985,1779954641000,-151.0,0.000113,2]
[423226986,1779954641000,-151.0,0.000113,2]
[423226989,1779954641000,-18602.0,0.00011498,2]
[423226988,1779954641000,-10251.42240976,0.000114,2]
[423226990,1779954641000,-200.0,0.00011499,2]
[423226992,1779954641000,-200.0,0.00011499,2]
[423226994,1779954641000,-177.08696598,0.000115,2]
[423226991,1779954641000,-200.0,0.00011499,2]
[423226995,1779954641000,-10251.42240976,0.000115,2]
[423226993,1779954641000,-102839.49392811,0.000115,2]
[423226987,1779954641000,-2349.25329934,0.00011365,2]
[423226996,1779954641000,-151.0,0.000115,2]
[423226997,1779954641000,-500.0,0.00011506,2]
[423226998,1779954641000,-172.84777438,0.00011506,2]
[423227029,1779954641000,-151.0,0.00012,2]
[423226980,1779954641000,-2203.0,0.0001127,2]
[423227031,1779954641000,-500.0,0.00012054,2]
[423227064,1779954641000,-683.77,0.00012329,2]
[423227071,1779954641000,-5573.825198,0.00012329,2]
[423227072,1779954641000,-5573.825198,0.00012329,2]
[423227067,1779954641000,-5573.825198,0.00012329,2]
[423227066,1779954641000,-5573.825198,0.00012329,2]
[423227069,1779954641000,-569.81,0.00012329,2]
[423227068,1779954641000,-5573.825198,0.00012329,2]
[423227070,1779954641000,-5573.825198,0.00012329,2]
[423227073,1779954641000,-5573.825198,0.00012329,2]
[423227074,1779954641000,-5573.825198,0.00012329,2]
[423227075,1779954641000,-5573.825198,0.00012329,2]
[423227078,1779954641000,-5573.825198,0.00012329,2]
[423227076,1779954641000,-5573.825198,0.00012329,2]
[423227063,1779954641000,-820.52,0.00012329,2]
[423227080,1779954641000,-5573.825198,0.00012329,2]
[423227085,1779954641000,-5573.825198,0.00012329,2]
[423227082,1779954641000,-5573.825198,0.00012329,2]
[423227083,1779954641000,-5573.825198,0.00012329,2]
[423227086,1779954641000,-5573.825198,0.00012329,2]
[423227087,1779954641000,-5573.825194,0.00012329,2]
[423227084,1779954641000,-5573.825198,0.00012329,2]
[423227089,1779954641000,-395.7,0.00012329,2]
[423227088,1779954641000,-474.84,0.00012329,2]
[423227090,1779954641000,-329.75,0.00012329,2]
[423227091,1779954641000,-274.79,0.00012329,2]
[423227092,1779954641000,-228.99,0.00012329,2]
[423227093,1779954641000,-190.83,0.00012329,2]
[423227094,1779954641000,-159.02,0.00012329,2]
[423227077,1779954641000,-5573.825198,0.00012329,2]
[423227065,1779954641000,-5573.825198,0.00012329,2]
[423227025,1779954641000,-1000.0,0.00012,2]
[423227061,1779954641000,-1181.56,0.00012329,2]
[423227062,1779954641000,-984.63,0.00012329,2]
[423227034,1779954641000,-328.0,0.00012055,3]
[423227033,1779954641000,-1849.7,0.00012054,2]
[423227036,1779954641000,-10251.42240976,0.000122,2]
[423227041,1779954641000,-151.0,0.000123,2]
[423227040,1779954641000,-10251.42240976,0.000123,2]
[423227044,1779954641000,-1849.7,0.00012328,2]
[423227038,1779954641000,-1000.0,0.00012271,2]
[423227035,1779954641000,-10251.42240976,0.000121,2]
[423227037,1779954641000,-2349.25329934,0.00012229,2]
[423227043,1779954641000,-249.55515533,0.00012328,2]
[423227045,1779954641000,-21845.11,0.00012329,2]
[423227042,1779954641000,-500.0,0.00012328,2]
[423227046,1779954641000,-18204.26,0.00012329,2]
[423227039,1779954641000,-244.0,0.00012271,2]
[423227048,1779954641000,-12641.85,0.00012329,2]
[423227047,1779954641000,-15170.22,0.00012329,2]
[423227060,1779954641000,-1417.87,0.00012329,2]
[423227058,1779954641000,-2041.73,0.00012329,2]
[423227057,1779954641000,-2450.07,0.00012329,2]
[423227049,1779954641000,-10534.87,0.00012329,2]
[423227053,1779954641000,-5080.47,0.00012329,2]
[423227052,1779954641000,-6096.57,0.00012329,2]
[423227059,1779954641000,-1701.44,0.00012329,2]
[423227056,1779954641000,-2940.09,0.00012329,2]
[423227055,1779954641000,-3528.11,0.00012329,2]
[423227054,1779954641000,-4233.73,0.00012329,2]
[423227050,1779954641000,-8779.06,0.00012329,2]
[423227051,1779954641000,-7315.88,0.00012329,2]
[423227135,1779954642000,-492.0,0.00013498,2]
[423227136,1779954642000,-151.0,0.000136,2]
[423227137,1779954642000,-254.68171598,0.00013641,2]
[423227134,1779954642000,-1000.0,0.00013498,2]
[423227131,1779954642000,-151.0,0.00013349,2]
[423227127,1779954642000,-151.0,0.000133,2]
[423227130,1779954642000,-151.0,0.00013349,2]
[423227132,1779954642000,-151.0,0.000134,2]
[423227129,1779954642000,-151.0,0.00013349,2]
[423227128,1779954642000,-152.0,0.00013317,30]
[423227139,1779954642000,-203.39705408,0.00013646,2]
[423227133,1779954642000,-1849.7,0.00013424,2]
[423227138,1779954642000,-303.664397,0.00013641,2]
[423227153,1779954642000,-500.0,0.00013698,2]
[423227151,1779954642000,-500.0,0.00013698,2]
[423227143,1779954642000,-500.0,0.00013698,2]
[423227140,1779954642000,-305.3522845,0.00013658,2]
[423227142,1779954642000,-500.0,0.00013698,2]
[423227144,1779954642000,-500.0,0.00013698,2]
[423227147,1779954642000,-604.20470094,0.00013698,2]
[423227146,1779954642000,-500.0,0.00013698,2]
[423227145,1779954642000,-500.0,0.00013698,2]
[423227149,1779954642000,-500.0,0.00013698,2]
[423227150,1779954642000,-500.0,0.00013698,2]
[423227148,1779954642000,-501.24404709,0.00013698,2]
[423227152,1779954642000,-500.0,0.00013698,2]
[423227126,1779954642000,-151.0,0.000133,2]
[423227141,1779954642000,-379.99300664,0.00013698,2]
[423227125,1779954642000,-152.0,0.00013288,30]
[423227112,1779954642000,-326.0070498,0.00012831,2]
[423227120,1779954642000,-151.0,0.000131,2]
[423227154,1779954642000,-442.11566179,0.00013698,2]
[423227097,1779954642000,-560.0508668,0.0001235,2]
[423227095,1779954642000,-795.15,0.00012329,2]
[423227098,1779954642000,-812.0696714,0.0001235,2]
[423227096,1779954642000,-2290.6849155,0.0001235,2]
[423227100,1779954642000,-271.6619212,0.00012378,2]
[423227099,1779954642000,-564.2580156,0.0001235,2]
[423227101,1779954642000,-151.0,0.000124,2]
[423227103,1779954642000,-151.0,0.000124,2]
[423227102,1779954642000,-10251.42240976,0.000124,2]
[423227105,1779954642000,-10251.42240976,0.000126,2]
[423227104,1779954642000,-151.0,0.000124,2]
[423227111,1779954642000,-10251.42240976,0.000128,2]
[423227124,1779954642000,-166.46234739,0.00013179,60]
[423227106,1779954642000,-151.0,0.000126,2]
[423227109,1779954642000,-10251.42240976,0.000127,2]
[423227108,1779954642000,-1849.7,0.00012602,2]
[423227113,1779954642000,-1849.7,0.00012876,2]
[423227110,1779954642000,-151.0,0.000127,2]
[423227114,1779954642000,-10251.42240976,0.000129,2]
[423227115,1779954642000,-151.0,0.000129,2]
[423227116,1779954642000,-169.08618078,0.00013,2]
[423227118,1779954642000,-2695.8,0.00013,2]
[423227119,1779954642000,-151.0,0.00013,2]
[423227123,1779954642000,-571.792,0.00013151,2]
[423227117,1779954642000,-151.0,0.00013,2]
[423227121,1779954642000,-631.39294989,0.00013106,2]
[423227122,1779954642000,-1849.7,0.0001315,2]
[423227107,1779954642000,-270.78878794,0.00012602,2]
[423227164,1779954642000,-151.0,0.00013699,2]
[423227155,1779954642000,-1849.7,0.00013698,2]
[423227157,1779954642000,-151.0,0.00013699,2]
[423227189,1779954642000,-443.0,0.0001427,2]
[423227191,1779954642000,-151.0,0.000143,2]
[423227194,1779954642000,-824.0,0.0001436,2]
[423227193,1779954642000,-824.0,0.00014348,2]
[423227196,1779954642000,-168.75799833,0.0001449,20]
[423227195,1779954642000,-824.0,0.00014405,2]
[423227197,1779954642000,-151.0,0.000145,2]
[423227199,1779954642000,-824.0,0.0001468,2]
[423227202,1779954642000,-1000.0,0.00014848,2]
[423227198,1779954642000,-1849.78292405,0.0001452,2]
[423227201,1779954642000,-824.0,0.00014821,2]
[423227200,1779954642000,-151.0,0.000148,2]
[423227204,1779954642000,-824.0,0.00014908,2]
[423227206,1779954642000,-164.70992263,0.00015,2]
[423227207,1779954642000,-208.33333333,0.00015,2]
[423227208,1779954642000,-150178.68036297,0.00015,2]
[423227205,1779954642000,-824.0,0.00014966,2]
[423227209,1779954642000,-405.09486,0.00015068,2]
[423227212,1779954642000,-151.0,0.000152,2]
[423227213,1779954642000,-151.0,0.000152,2]
[423227210,1779954642000,-705.19212585,0.00015106,2]
[423227211,1779954642000,-208.33333333,0.000152,2]
[423227214,1779954642000,-824.0,0.00015285,2]
[423227216,1779954642000,-456.7807193,0.0001529,2]
[423227215,1779954642000,-151.2716887,0.0001529,2]
[423227218,1779954642000,-824.0,0.00015331,2]
[423227217,1779954642000,-208.33333333,0.000153,2]
[423227156,1779954642000,-175.75,0.00013699,2]
[423227219,1779954642000,-824.0,0.00015331,2]
[423227182,1779954642000,-151.0,0.000141,2]
[423227188,1779954642000,-423.836,0.0001427,2]
[423227203,1779954642000,-791.0,0.00014848,2]
[423227190,1779954642000,-185.0,0.0001427,2]
[423227187,1779954642000,-156.0,0.00014247,3]
[423227159,1779954642000,-151.0,0.00013699,2]
[423227160,1779954642000,-151.0,0.00013699,2]
[423227161,1779954642000,-153.327713,0.00013699,2]
[423227162,1779954642000,-1000.0,0.00013699,2]
[423227163,1779954642000,-151.0,0.00013699,2]
[423227165,1779954642000,-151.0,0.00013699,2]
[423227166,1779954642000,-151.0,0.00013699,2]
[423227168,1779954642000,-151.0,0.00013699,2]
[423227167,1779954642000,-151.0,0.00013699,2]
[423227169,1779954642000,-151.0,0.00013699,2]
[423227178,1779954642000,-1849.7,0.00013972,2]
[423227173,1779954642000,-151.0,0.000138,2]
[423227176,1779954642000,-509.36343195,0.00013932,2]
[423227158,1779954642000,-292.15815,0.00013699,2]
[423227177,1779954642000,-406.79410815,0.00013937,2]
[423227171,1779954642000,-223.683768,0.00013699,2]
[423227192,1779954642000,-500.0,0.00014317,2]
[423227186,1779954642000,-1849.7,0.00014246,2]
[423227185,1779954642000,-38000.0,0.00014246,3]
[423227183,1779954642000,-500.0,0.00014228,2]
[423227181,1779954642000,-824.0,0.00014085,2]
[423227184,1779954642000,-38000.0,0.00014246,3]
[423227179,1779954642000,-824.0,0.00014039,2]
[423227172,1779954642000,-151.0,0.000137,2]
[423227174,1779954642000,-151.0,0.000138,2]
[423227175,1779954642000,-151.0,0.000139,2]
[423227170,1779954642000,-151.517159,0.00013699,2]
[423227180,1779954642000,-824.0,0.00014039,2]
[423227267,1779954643000,-519.99869591,0.00016935,2]
[423227286,1779954643000,-500.0,0.00017,7]
[423227270,1779954643000,-800.0,0.00016953,2]
[423227268,1779954643000,-800.0,0.0001694,2]
[423227265,1779954643000,-800.0,0.00016888,2]
[423227260,1779954643000,-519.99869591,0.00016737,2]
[423227264,1779954643000,-824.0,0.00016854,2]
[423227262,1779954643000,-519.99869591,0.00016792,2]
[423227261,1779954643000,-519.99869591,0.00016773,2]
[423227259,1779954643000,-519.99869591,0.00016685,2]
[423227266,1779954643000,-800.0,0.00016894,2]
[423227258,1779954643000,-519.99869591,0.00016634,2]
[423227263,1779954643000,-824.0,0.00016808,2]
[423227269,1779954643000,-519.99869591,0.00016942,2]
[423227277,1779954643000,-500.0,0.00017,7]
[423227271,1779954643000,-519.99869591,0.00016963,2]
[423227274,1779954643000,-119740.48745339,0.00017,2]
[423227275,1779954643000,-500.0,0.00017,7]
[423227273,1779954643000,-519.99869591,0.00016999,2]
[423227276,1779954643000,-500.0,0.00017,7]
[423227279,1779954643000,-500.0,0.00017,7]
[423227282,1779954643000,-500.0,0.00017,7]
[423227280,1779954643000,-500.0,0.00017,7]
[423227278,1779954643000,-500.0,0.00017,7]
[423227283,1779954643000,-500.0,0.00017,7]
[423227281,1779954643000,-500.0,0.00017,7]
[423227284,1779954643000,-500.0,0.00017,7]
[423227285,1779954643000,-500.0,0.00017,7]
[423227257,1779954643000,-519.99869591,0.00016624,2]
[423227272,1779954643000,-519.99869591,0.00016993,2]
[423227254,1779954643000,-824.0,0.00016488,2]
[423227221,1779954643000,-208.33333333,0.000155,2]
[423227255,1779954643000,-519.99869591,0.00016561,2]
[423227287,1779954643000,-500.0,0.00017,7]
[423227223,1779954643000,-174.9456338,0.000156,2]
[423227225,1779954643000,-824.0,0.00015605,2]
[423227227,1779954643000,-174.9456338,0.000158,2]
[423227220,1779954643000,-168.75799833,0.00015339,24]
[423227224,1779954643000,-208.33333333,0.000156,2]
[423227222,1779954643000,-600.0,0.00015509,2]
[423227229,1779954643000,-2290.6849155,0.00015852,2]
[423227231,1779954643000,-560.0508668,0.00015852,2]
[423227236,1779954643000,-174.9456338,0.000159,2]
[423227233,1779954643000,-812.0696714,0.00015852,2]
[423227234,1779954643000,-564.2580156,0.00015852,2]
[423227235,1779954643000,-158.0,0.0001589,3]
[423227237,1779954643000,-151.0,0.000159,2]
[423227256,1779954643000,-151.0,0.000166,2]
[423227242,1779954643000,-5851.20553001,0.00016,2]
[423227243,1779954643000,-800.0,0.00016009,2]
[423227239,1779954643000,-824.0,0.00015925,2]
[423227241,1779954643000,-767.06633829,0.00016,3]
[423227238,1779954643000,-271.6619212,0.00015908,2]
[423227245,1779954643000,-824.0,0.00016101,2]
[423227244,1779954643000,-200.0,0.000161,2]
[423227247,1779954643000,-168.75799833,0.00016188,29]
[423227246,1779954643000,-319.2903335,0.00016112,2]
[423227249,1779954643000,-1000.0,0.00016333,2]
[423227248,1779954643000,-824.0,0.00016245,2]
[423227250,1779954643000,-1000.0,0.00016333,2]
[423227252,1779954643000,-200.0,0.00016438,2]
[423227253,1779954643000,-175.75,0.00016438,6]
[423227251,1779954643000,-824.0,0.00016348,2]
[423227240,1779954643000,-824.0,0.00015925,2]
[423227288,1779954643000,-500.0,0.00017,7]
[423227304,1779954643000,-767.06633829,0.00017,7]
[423227295,1779954643000,-500.0,0.00017,7]
[423227327,1779954643000,-824.0,0.00017452,2]
[423227326,1779954643000,-824.0,0.00017448,2]
[423227328,1779954643000,-519.99869591,0.00017484,2]
[423227329,1779954643000,-824.0,0.00017494,2]
[423227333,1779954643000,-519.99869591,0.00017542,2]
[423227336,1779954643000,-800.0,0.00017654,2]
[423227334,1779954643000,-519.99869591,0.00017545,2]
[423227331,1779954643000,-800.0,0.00017533,2]
[423227330,1779954643000,-160.0,0.0001753,4]
[423227332,1779954643000,-159.0,0.00017534,3]
[423227335,1779954643000,-3020.86661747,0.0001764,2]
[423227337,1779954643000,-824.0,0.00017772,2]
[423227338,1779954643000,-824.0,0.00017774,2]
[423227339,1779954643000,-824.0,0.00017774,2]
[423227341,1779954643000,-800.0,0.00017841,2]
[423227342,1779954643000,-800.0,0.00017846,2]
[423227343,1779954643000,-805.38879147,0.00017852,2]
[423227340,1779954643000,-7039.42834839,0.000178,30]
[423227345,1779954643000,-824.0,0.00017894,2]
[423227344,1779954643000,-824.0,0.00017894,2]
[423227347,1779954643000,-1000.0,0.00017966,2]
[423227346,1779954643000,-160.0,0.00017933,5]
[423227350,1779954643000,-6887.97117785,0.00017966,2]
[423227348,1779954643000,-1000.0,0.00017966,2]
[423227349,1779954643000,-579.0,0.00017966,2]
[423227351,1779954643000,-434501.91856254,0.00018,2]
[423227353,1779954643000,-500.0,0.00018,2]
[423227352,1779954643000,-500.0,0.00018,2]
[423227291,1779954643000,-500.0,0.00017,7]
[423227324,1779954643000,-519.99869591,0.00017379,2]
[423227325,1779954643000,-800.0,0.00017402,2]
[423227354,1779954643000,-531.97876412,0.00018,2]
[423227322,1779954643000,-519.99869591,0.00017325,2]
[423227289,1779954643000,-500.0,0.00017,7]
[423227290,1779954643000,-500.0,0.00017,7]
[423227292,1779954643000,-500.0,0.00017,7]
[423227293,1779954643000,-500.0,0.00017,7]
[423227294,1779954643000,-500.0,0.00017,7]
[423227296,1779954643000,-500.0,0.00017,7]
[423227298,1779954643000,-500.0,0.00017,7]
[423227297,1779954643000,-500.0,0.00017,7]
[423227299,1779954643000,-500.0,0.00017,7]
[423227323,1779954643000,-824.0,0.00017374,2]
[423227310,1779954643000,-160.0,0.00017128,3]
[423227300,1779954643000,-500.0,0.00017,7]
[423227302,1779954643000,-500.0,0.00017,7]
[423227307,1779954643000,-200.0,0.000171,2]
[423227308,1779954643000,-1343.24910844,0.000171,2]
[423227303,1779954643000,-354.53,0.00017,7]
[423227301,1779954643000,-500.0,0.00017,7]
[423227320,1779954643000,-519.99869591,0.00017296,2]
[423227305,1779954643000,-202.409598,0.00017037,30]
[423227319,1779954643000,-824.0,0.00017293,2]
[423227318,1779954643000,-824.0,0.00017293,2]
[423227317,1779954643000,-519.99869591,0.00017279,2]
[423227321,1779954643000,-151.0,0.000173,2]
[423227314,1779954643000,-519.99869591,0.00017179,2]
[423227315,1779954643000,-833.0,0.00017254,2]
[423227313,1779954643000,-800.0,0.00017169,2]
[423227312,1779954643000,-154.0,0.00017148,2]
[423227311,1779954643000,-3462.0,0.00017148,2]
[423227309,1779954643000,-778.99130182,0.00017106,2]
[423227316,1779954643000,-443.0,0.0001727,2]
[423227306,1779954643000,-519.99869591,0.00017039,2]
[423227397,1779954644000,-162.0,0.00019178,3]
[423227396,1779954644000,-4251.59,0.00019178,2]
[423227398,1779954644000,-14152.80819302,0.00019181,120]
[423227394,1779954644000,-300.0,0.00019178,2]
[423227391,1779954644000,-150.97,0.00019146,2]
[423227392,1779954644000,-3462.0,0.00019148,2]
[423227389,1779954644000,-160.0,0.0001914,8]
[423227390,1779954644000,-181.17,0.00019146,2]
[423227385,1779954644000,-800.0,0.00019082,2]
[423227387,1779954644000,-150.97,0.00019096,2]
[423227393,1779954644000,-90537.27181345,0.0001916,2]
[423227399,1779954644000,-181.18691013,0.00019196,2]
[423227413,1779954644000,-2290.6849155,0.00019353,2]
[423227401,1779954644000,-1437.62907538,0.00019197,30]
[423227400,1779954644000,-150.97,0.00019196,2]
[423227402,1779954644000,-1078.42,0.000192,2]
[423227404,1779954644000,-173.09,0.00019228,2]
[423227403,1779954644000,-173.09,0.000192,2]
[423227406,1779954644000,-173.09,0.00019255,2]
[423227409,1779954644000,-200.0,0.000193,7]
[423227405,1779954644000,-150.97,0.00019246,2]
[423227408,1779954644000,-150.97,0.00019296,2]
[423227407,1779954644000,-173.09,0.00019283,2]
[423227410,1779954644000,-173.09,0.0001931,2]
[423227411,1779954644000,-173.09,0.00019338,2]
[423227383,1779954644000,-4251.59,0.00018904,2]
[423227395,1779954644000,-151.0,0.00019178,4]
[423227379,1779954644000,-4251.59,0.0001863,2]
[423227367,1779954644000,-6181.71379232,0.0001835,2]
[423227386,1779954644000,-181.17,0.00019096,2]
[423227416,1779954644000,-564.2580156,0.00019353,2]
[423227361,1779954644000,-6181.71379232,0.0001835,2]
[423227355,1779954644000,-3462.0,0.00018148,2]
[423227362,1779954644000,-6181.71379232,0.0001835,2]
[423227356,1779954644000,-160.73529886,0.00018148,2]
[423227360,1779954644000,-6181.71379232,0.0001835,2]
[423227359,1779954644000,-800.0,0.00018342,2]
[423227357,1779954644000,-824.0,0.00018214,2]
[423227358,1779954644000,-160.0,0.00018335,6]
[423227363,1779954644000,-6181.71379232,0.0001835,2]
[423227364,1779954644000,-6181.71379232,0.0001835,2]
[423227366,1779954644000,-6181.71379232,0.0001835,2]